[Event "Schack-SM 2024: Junior-SM"]
[Site "Fortnox Arena, Hejaregatan 5, Vaxjo, Sweden"]
[Date "2024.07.05"]
[Round "7.5"]
[White "Nilsson, Oliver"]
[Black "Falkevall, Axel"]
[Result "0-1"]
[TimeControl "90 minutes for 40 moves + 30 minutes for the rest of the game + 30 seconds per move from move one."]
[BlackTitle "FM"]
[WhiteElo "2099"]
[BlackElo "2318"]

1. e4 {[%clk 01:30:58]} {[%emt 00:00:03]} e6 {[%clk 01:30:54]} {[%emt
00:00:06]} 2. d4 {[%clk 01:31:23]} {[%emt 00:00:06]} d5 {[%clk 01:31:20]}
{[%emt 00:00:03]} 3. exd5 {[%clk 01:31:50]} {[%emt 00:00:03]} exd5 {[%clk
01:31:44]} {[%emt 00:00:05]} 4. c4 {[%clk 01:32:18]} {[%emt 00:00:03]} Nf6
{[%clk 01:31:26]} {[%emt 00:00:47]} 5. Nc3 {[%clk 01:27:44]} {[%emt 00:05:05]}
Bb4 {[%clk 01:31:36]} {[%emt 00:00:20]} 6. Nf3 {[%clk 01:27:50]} {[%emt
00:00:24]} O-O {[%clk 01:31:32]} {[%emt 00:00:33]} 7. Be2 {[%clk 01:28:17]}
{[%emt 00:00:04]} dxc4 {[%clk 01:30:09]} {[%emt 00:01:53]} 8. Bxc4 {[%clk
01:28:03]} {[%emt 00:00:44]} Nc6 {[%clk 01:28:36]} {[%emt 00:02:02]} 9. O-O
{[%clk 01:28:09]} {[%emt 00:00:25]} Bg4 {[%clk 01:28:36]} {[%emt 00:00:29]} 10.
Be3 {[%clk 01:28:36]} {[%emt 00:00:04]} Rb8 {[%clk 01:27:23]} {[%emt 00:01:43]}
11. Be2 {[%clk 01:24:56]} {[%emt 00:04:09]} Nd5 {[%clk 01:26:38]} {[%emt
00:01:15]} 12. Bg5 {[%clk 01:15:52]} {[%emt 00:09:35]} Be7 {[%clk 01:22:27]}
{[%emt 00:04:40]} 13. Bxe7 {[%clk 01:13:08]} {[%emt 00:03:14]} Ncxe7 {[%clk
01:22:10]} {[%emt 00:00:48]} 14. h3 {[%clk 01:13:28]} {[%emt 00:00:10]} Bf5
{[%clk 01:16:41]} {[%emt 00:05:59]} 15. Ne5 {[%clk 01:12:45]} {[%emt 00:01:13]}
f6 {[%clk 01:11:40]} {[%emt 00:05:31]} 16. Nc4 {[%clk 01:11:10]} {[%emt
00:02:05]} Kh8 {[%clk 01:08:50]} {[%emt 00:03:19]} 17. Qd2 {[%clk 01:09:51]}
{[%emt 00:01:50]} c6 {[%clk 01:04:20]} {[%emt 00:04:59]} 18. Bf3 {[%clk
01:06:15]} {[%emt 00:04:07]} Be6 {[%clk 00:57:14]} {[%emt 00:07:36]} 19. Rfe1
{[%clk 01:01:47]} {[%emt 00:04:58]} Bf7 {[%clk 00:51:56]} {[%emt 00:05:48]} 20.
Ne3 {[%clk 00:53:05]} {[%emt 00:09:12]} Nxe3 {[%clk 00:45:55]} {[%emt
00:06:30]} 21. fxe3 {[%clk 00:52:41]} {[%emt 00:00:54]} f5 {[%clk 00:45:16]}
{[%emt 00:01:10]} 22. Rad1 {[%clk 00:51:03]} {[%emt 00:02:07]} Nd5 {[%clk
00:40:28]} {[%emt 00:05:18]} 23. e4 {[%clk 00:50:33]} {[%emt 00:01:00]} fxe4
{[%clk 00:39:56]} {[%emt 00:01:03]} 24. Nxe4 {[%clk 00:50:16]} {[%emt
00:00:48]} Bg8 {[%clk 00:34:08]} {[%emt 00:06:16]} 25. Nc5 {[%clk 00:47:36]}
{[%emt 00:03:11]} Nf4 {[%clk 00:20:09]} {[%emt 00:14:28]} 26. Bg4 {[%clk
00:42:48]} {[%emt 00:05:17]} h5 {[%clk 00:15:44]} {[%emt 00:04:57]} 27. Re4
{[%clk 00:40:14]} {[%emt 00:03:03]} Qd6 {[%clk 00:13:33]} {[%emt 00:02:41]} 28.
Rf1 {[%clk 00:32:48]} {[%emt 00:07:57]} g5 {[%clk 00:13:03]} {[%emt 00:01:00]}
29. Bf3 {[%clk 00:30:51]} {[%emt 00:02:27]} Bc4 {[%clk 00:12:02]} {[%emt
00:01:31]} 30. Rfe1 {[%clk 00:29:04]} {[%emt 00:02:16]} Bd5 {[%clk 00:09:07]}
{[%emt 00:03:25]} 31. Re5 {[%clk 00:24:16]} {[%emt 00:05:19]} Bxf3 {[%clk
00:09:11]} {[%emt 00:00:26]} 32. gxf3 {[%clk 00:24:22]} {[%emt 00:00:24]} Rbd8
{[%clk 00:06:48]} {[%emt 00:02:53]} 33. Ne6 {[%clk 00:15:08]} {[%emt 00:09:44]}
Nxe6 {[%clk 00:06:19]} {[%emt 00:00:58]} 34. Rxe6 {[%clk 00:15:34]} {[%emt
00:00:05]} Qg3+ {[%clk 00:06:10]} {[%emt 00:00:39]} 35. Qg2 {[%clk 00:15:55]}
{[%emt 00:00:09]} Qxg2+ {[%clk 00:06:01]} {[%emt 00:00:39]} 36. Kxg2 {[%clk
00:16:24]} {[%emt 00:00:01]} Rxd4 {[%clk 00:06:12]} {[%emt 00:00:19]} 37. R1e2
{[%clk 00:15:51]} {[%emt 00:01:02]} Kg7 {[%clk 00:04:46]} {[%emt 00:01:56]} 38.
R2e5 {[%clk 00:15:23]} {[%emt 00:00:59]} Rd2+ {[%clk 00:04:57]} {[%emt
00:00:19]} 39. Kg1 {[%clk 00:15:13]} {[%emt 00:00:39]} Rxb2 {[%clk 00:03:24]}
{[%emt 00:02:04]} 40. Rxg5+ {[%clk 00:15:10]} {[%emt 00:00:32]} Kf7 {[%clk
00:03:48]} {[%emt 00:00:06]} 41. Reg6 {[%clk 00:15:19]} {[%emt 00:00:21]} Rd8
{[%clk 00:29:55]} {[%emt 00:04:23]} 42. Rg7+ {[%clk 00:45:43]} {[%emt
00:00:05]} Ke6 {[%clk 00:29:59]} {[%emt 00:00:26]} 43. R7g6+ {[%clk 00:46:08]}
{[%emt 00:00:06]} Kd7 {[%clk 00:29:54]} {[%emt 00:00:34]} 44. Rxh5 {[%clk
00:46:07]} {[%emt 00:00:32]} Kc7 {[%clk 00:27:45]} {[%emt 00:02:39]} 45. Rg2
{[%clk 00:46:31]} {[%emt 00:00:05]} Rdd2 {[%clk 00:20:41]} {[%emt 00:07:34]} 46.
Rxd2 {[%clk 00:46:28]} {[%emt 00:00:34]} Rxd2 {[%clk 00:21:07]} {[%emt
00:00:03]} 47. Rg5 {[%clk 00:46:23]} {[%emt 00:00:34]} Kd6 {[%clk 00:18:00]}
{[%emt 00:03:38]} 48. h4 {[%clk 00:46:38]} {[%emt 00:00:15]} c5 {[%clk
00:13:02]} {[%emt 00:05:28]} 49. h5 {[%clk 00:46:12]} {[%emt 00:00:56]} c4
{[%clk 00:11:46]} {[%emt 00:01:47]} 50. Rg2 {[%clk 00:41:04]} {[%emt 00:05:37]}
Rd1+ {[%clk 00:08:20]} {[%emt 00:03:56]} 51. Kh2 {[%clk 00:41:22]} {[%emt
00:00:13]} Rd5 {[%clk 00:08:44]} {[%emt 00:00:05]} 52. Rg6+ {[%clk 00:41:29]}
{[%emt 00:00:23]} Kc5 {[%clk 00:08:24]} {[%emt 00:00:51]} 53. h6 {[%clk
00:41:53]} {[%emt 00:00:05]} c3 {[%clk 00:08:16]} {[%emt 00:00:39]} 54. f4
{[%clk 00:40:47]} {[%emt 00:01:36]} c2 {[%clk 00:07:50]} {[%emt 00:00:56]} 55.
Rg1 {[%clk 00:38:35]} {[%emt 00:02:41]} Kc4 {[%clk 00:07:09]} {[%emt 00:01:12]}
56. f5 {[%clk 00:37:44]} {[%emt 00:01:20]} Rxf5 {[%clk 00:05:38]} {[%emt
00:02:01]} 57. Rg4+ {[%clk 00:38:07]} {[%emt 00:00:06]} Kd5 {[%clk 00:05:30]}
{[%emt 00:00:39]} 0-1

[Event "Schack-SM 2024: Junior-SM"]
[Site "Fortnox Arena, Hejaregatan 5, Vaxjo, Sweden"]
[Date "2024.07.04"]
[Round "6.1"]
[White "Wernberg, Hugo"]
[Black "Rasti, Arvin"]
[Result "1-0"]
[TimeControl "90 minutes for 40 moves + 30 minutes for the rest of the game + 30 seconds per move from move one."]
[WhiteTitle "FM"]
[BlackTitle "FM"]
[WhiteElo "2208"]
[BlackElo "2210"]

1. e4 {[%clk 01:30:56]} {[%emt 00:00:02]} c5 {[%clk 01:24:50]} {[%emt
00:06:09]} 2. Nf3 {[%clk 01:31:21]} {[%emt 00:00:06]} d6 {[%clk 01:25:12]}
{[%emt 00:00:08]} 3. d4 {[%clk 01:31:22]} {[%emt 00:00:29]} cxd4 {[%clk
01:25:35]} {[%emt 00:00:08]} 4. Nxd4 {[%clk 01:31:44]} {[%emt 00:00:07]} Nf6
{[%clk 01:25:57]} {[%emt 00:00:08]} 5. Nc3 {[%clk 01:32:09]} {[%emt 00:00:06]}
Nc6 {[%clk 01:26:17]} {[%emt 00:00:10]} 6. Bg5 {[%clk 01:31:56]} {[%emt
00:00:43]} e6 {[%clk 01:25:18]} {[%emt 00:01:29]} 7. Qd2 {[%clk 01:31:55]}
{[%emt 00:00:31]} a6 {[%clk 01:25:33]} {[%emt 00:00:15]} 8. O-O-O {[%clk
01:29:22]} {[%emt 00:03:03]} Bd7 {[%clk 01:25:55]} {[%emt 00:00:07]} 9. Nxc6
{[%clk 01:25:52]} {[%emt 00:04:01]} Bxc6 {[%clk 01:25:43]} {[%emt 00:00:42]} 10.
f3 {[%clk 01:26:12]} {[%emt 00:00:10]} Be7 {[%clk 01:25:38]} {[%emt 00:00:35]}
11. h4 {[%emt 00:01:03]} Qa5 {[%emt 00:09:11]} 12. Kb1 {[%clk 01:23:20]} {[%emt
00:02:12]} b5 {[%emt 00:03:25]} 13. Bd3 {[%clk 01:14:20]} {[%emt 00:09:14]} Qc7
{[%emt 00:04:38]} 14. Ne2 {[%clk 01:11:45]} {[%emt 00:01:15]} Bd7 {[%emt
00:04:45]} 15. g4 {[%clk 00:56:05]} {[%emt 00:14:45]} h5 {[%emt 00:08:24]} 16.
gxh5 {[%clk 00:38:18]} {[%emt 00:16:39]} Rxh5 {[%emt 00:02:59]} 17. f4 {[%clk
00:34:32]} {[%emt 00:03:41]} Bc6 {[%emt 00:05:23]} 18. Nd4 {[%clk 00:33:26]}
{[%emt 00:00:49]} Bb7 {[%clk 00:43:50]} {[%emt 00:11:51]} 19. e5 {[%clk
00:25:13]} 1-0

[Event "Schack-SM 2024: Junior-SM"]
[Site "Fortnox Arena, Hejaregatan 5, Vaxjo, Sweden"]
[Date "2024.07.04"]
[Round "6.2"]
[White "Soderstrom, Adrian"]
[Black "Valcu, Lavinia"]
[Result "1-0"]
[TimeControl "90 minutes for 40 moves + 30 minutes for the rest of the game + 30 seconds per move from move one."]
[WhiteTitle "FM"]
[WhiteElo "2351"]
[BlackElo "1971"]

1. e4 {[%clk 01:30:14]} {[%emt 00:00:36]} c5 {[%clk 01:29:44]} {[%emt
00:01:26]} 2. Nf3 {[%clk 01:30:22]} {[%emt 00:00:22]} d6 {[%clk 01:30:07]}
{[%emt 00:00:07]} 3. d4 {[%clk 01:30:50]} {[%emt 00:00:02]} cxd4 {[%clk
01:30:31]} {[%emt 00:00:06]} 4. Nxd4 {[%clk 01:31:18]} {[%emt 00:00:02]} Nf6
{[%clk 01:30:52]} {[%emt 00:00:09]} 5. Nc3 {[%clk 01:31:45]} {[%emt 00:00:03]}
a6 {[%clk 01:31:13]} {[%emt 00:00:09]} 6. Bg5 {[%clk 01:32:12]} {[%emt
00:00:02]} e6 {[%clk 01:31:37]} {[%emt 00:00:07]} 7. f4 {[%clk 01:32:40]}
{[%emt 00:00:02]} Be7 {[%clk 01:32:01]} {[%emt 00:00:06]} 8. Qf3 {[%clk
01:33:09]} {[%emt 00:00:02]} Qc7 {[%clk 01:32:23]} {[%emt 00:00:08]} 9. O-O-O
{[%clk 01:33:36]} {[%emt 00:00:02]} Nbd7 {[%clk 01:32:47]} {[%emt 00:00:07]} 10.
g4 {[%clk 01:34:01]} {[%emt 00:00:04]} h6 {[%clk 01:31:59]} {[%emt 00:01:19]}
11. Bxf6 {[%clk 01:34:18]} {[%emt 00:00:13]} Bxf6 {[%clk 01:32:24]} {[%emt
00:00:05]} 12. h4 {[%clk 01:34:43]} {[%emt 00:00:04]} Nb6 {[%clk 01:32:47]}
{[%emt 00:00:07]} 13. g5 {[%clk 01:35:07]} {[%emt 00:00:06]} Bxd4 {[%clk
01:33:13]} {[%emt 00:00:05]} 14. Rxd4 {[%clk 01:35:35]} {[%emt 00:00:02]} Qc5
{[%clk 01:33:34]} {[%emt 00:00:08]} 15. Qf2 {[%clk 01:35:56]} {[%emt 00:00:09]}
Bd7 {[%clk 01:31:28]} {[%emt 00:02:36]} 16. e5 {[%clk 01:12:58]} {[%emt
00:23:28]} Bc6 {[%clk 01:02:20]} {[%emt 00:29:39]} 17. Rh3 {[%clk 01:11:00]}
{[%emt 00:02:28]} Nd7 {[%clk 00:59:10]} {[%emt 00:03:40]} 18. exd6 {[%clk
01:03:01]} {[%emt 00:08:29]} b5 {[%clk 00:52:19]} {[%emt 00:07:21]} 19. Nd1
{[%clk 00:42:10]} {[%emt 00:21:20]} Bd5 {[%clk 00:45:04]} {[%emt 00:07:45]} 20.
Bg2 {[%clk 00:36:44]} {[%emt 00:05:57]} Nb6 {[%clk 00:38:02]} {[%emt 00:07:33]}
21. Bxd5 {[%clk 00:33:42]} {[%emt 00:03:30]} Nxd5 {[%clk 00:38:13]} {[%emt
00:00:18]} 22. Nc3 {[%clk 00:32:17]} {[%emt 00:01:56]} Qxd6 {[%clk 00:29:25]}
{[%emt 00:09:19]} 23. Nxd5 {[%clk 00:32:15]} {[%emt 00:00:32]} exd5 {[%clk
00:29:48]} {[%emt 00:00:07]} 24. Re3+ {[%clk 00:31:37]} {[%emt 00:01:08]} Kf8
{[%clk 00:30:02]} {[%emt 00:00:15]} 25. Qd2 {[%clk 00:26:58]} {[%emt 00:05:09]}
Kg8 {[%clk 00:26:24]} {[%emt 00:04:08]} 26. Rxd5 {[%clk 00:27:06]} {[%emt
00:00:22]} Qc6 {[%clk 00:24:58]} {[%emt 00:01:56]} 27. Rd6 {[%clk 00:18:05]}
{[%emt 00:09:32]} Qh1+ {[%clk 00:21:54]} {[%emt 00:03:33]} 28. Re1 {[%clk
00:18:20]} {[%emt 00:00:15]} Qxh4 {[%clk 00:21:23]} {[%emt 00:01:01]} 29. g6
{[%clk 00:18:09]} {[%emt 00:00:42]} fxg6 {[%clk 00:16:39]} {[%emt 00:05:14]} 30.
Rxg6 {[%clk 00:17:45]} {[%emt 00:00:54]} Kh7 {[%clk 00:13:07]} {[%emt
00:04:02]} 31. Rxg7+ {[%clk 00:06:13]} {[%emt 00:12:02]} Kxg7 {[%clk 00:13:26]}
{[%emt 00:00:11]} 32. Qd7+ {[%clk 00:06:38]} {[%emt 00:00:04]} Kg6 {[%clk
00:10:11]} {[%emt 00:03:46]} 33. Qe6+ {[%clk 00:07:03]} {[%emt 00:00:06]} Kg7
{[%clk 00:09:40]} {[%emt 00:01:00]} 34. Qd7+ {[%clk 00:06:37]} {[%emt
00:00:55]} Kg6 {[%clk 00:09:39]} {[%emt 00:00:32]} 35. f5+ {[%clk 00:05:01]}
{[%emt 00:02:07]} Kh5 {[%clk 00:06:01]} {[%emt 00:04:07]} 36. Qf7+ {[%clk
00:05:09]} {[%emt 00:00:22]} Kg5 {[%clk 00:04:14]} {[%emt 00:02:17]} 37. Qg6+
{[%clk 00:04:41]} {[%emt 00:00:58]} Kf4 {[%clk 00:04:40]} {[%emt 00:00:04]} 38.
Rf1+ {[%clk 00:05:03]} {[%emt 00:00:08]} Ke5 {[%clk 00:03:56]} {[%emt
00:01:14]} 39. Qe6+ {[%clk 00:05:31]} {[%emt 00:00:02]} Kd4 {[%clk 00:04:17]}
{[%emt 00:00:09]} 40. Rd1+ {[%clk 00:05:45]} {[%emt 00:00:16]} Kc5 {[%clk
00:04:36]} {[%emt 00:00:10]} 41. Qd6+ {[%clk 00:06:10]} {[%emt 00:00:06]} Kc4
{[%clk 00:04:55]} {[%emt 00:00:11]} 42. b3+ {[%clk 00:06:34]} {[%emt 00:00:05]}
Kc3 {[%clk 00:05:21]} {[%emt 00:00:05]} 43. Rd3# {[%emt 00:00:06]} 1-0

[Event "Schack-SM 2024: Junior-SM"]
[Site "Fortnox Arena, Hejaregatan 5, Vaxjo, Sweden"]
[Date "2024.07.04"]
[Round "6.3"]
[White "Frank, Anton 2006"]
[Black "Strom-Engdahl, Alexander"]
[Result "0-1"]
[TimeControl "90 minutes for 40 moves + 30 minutes for the rest of the game + 30 seconds per move from move one."]
[WhiteElo "2131"]
[BlackElo "2191"]

1. e4 {[%clk 01:30:24]} {[%emt 00:00:35]} c5 {[%clk 01:30:14]} {[%emt
00:00:45]} 2. Nf3 {[%clk 01:30:47]} {[%emt 00:00:08]} Nc6 {[%clk 01:30:39]}
{[%emt 00:00:06]} 3. Bb5 {[%clk 01:31:07]} {[%emt 00:00:09]} g6 {[%clk
01:30:56]} {[%emt 00:00:14]} 4. O-O {[%clk 01:31:10]} {[%emt 00:00:26]} Bg7
{[%clk 01:31:09]} {[%emt 00:00:18]} 5. c3 {[%clk 01:30:56]} {[%emt 00:00:44]}
e5 {[%clk 01:30:41]} {[%emt 00:00:57]} 6. d4 {[%clk 01:31:05]} {[%emt
00:00:20]} cxd4 {[%clk 01:31:06]} {[%emt 00:00:06]} 7. cxd4 {[%clk 01:31:29]}
{[%emt 00:00:06]} exd4 {[%clk 01:31:32]} {[%emt 00:00:05]} 8. Bf4 {[%clk
01:31:48]} {[%emt 00:00:09]} a6 {[%clk 01:31:33]} {[%emt 00:00:30]} 9. Ba4
{[%clk 01:32:00]} {[%emt 00:00:19]} Nge7 {[%clk 01:31:52]} {[%emt 00:00:11]} 10.
Bd6 {[%clk 01:32:17]} {[%emt 00:00:12]} b5 {[%clk 01:32:16]} {[%emt 00:00:06]}
11. Bb3 {[%clk 01:32:38]} {[%emt 00:00:09]} Bb7 {[%clk 01:32:36]} {[%emt
00:00:10]} 12. Ng5 {[%clk 01:32:40]} {[%emt 00:00:27]} O-O {[%clk 01:32:51]}
{[%emt 00:00:16]} 13. Qf3 {[%clk 01:33:04]} {[%emt 00:00:06]} Qe8 {[%clk
01:33:16]} {[%emt 00:00:05]} 14. Qg3 {[%clk 01:33:25]} {[%emt 00:00:09]} h6
{[%clk 01:29:54]} {[%emt 00:03:52]} 15. Nf3 {[%clk 01:33:46]} {[%emt 00:00:09]}
Na5 {[%clk 01:24:46]} {[%emt 00:05:37]} 16. Nbd2 {[%clk 01:33:53]} {[%emt
00:00:23]} Rc8 {[%clk 01:17:39]} {[%emt 00:07:38]} 17. Rfe1 {[%clk 01:34:15]}
{[%emt 00:00:08]} Qd8 {[%clk 01:13:27]} {[%emt 00:04:42]} 18. a3 {[%clk
01:34:07]} {[%emt 00:00:38]} Nxb3 {[%clk 01:11:39]} {[%emt 00:02:18]} 19. Nxb3
{[%clk 01:34:23]} {[%emt 00:00:15]} Re8 {[%clk 01:07:27]} {[%emt 00:04:40]} 20.
Rad1 {[%clk 01:21:36]} {[%emt 00:13:17]} Qb6 {[%clk 01:02:18]} {[%emt
00:05:39]} 21. Nbxd4 {[%clk 01:02:16]} {[%emt 00:19:51]} Rc4 {[%clk 00:54:26]}
{[%emt 00:08:22]} 22. Be5 {[%clk 00:30:32]} {[%emt 00:32:14]} d6 {[%clk
00:36:57]} {[%emt 00:17:58]} 23. Bxg7 {[%clk 00:28:58]} {[%emt 00:02:05]} Kxg7
{[%clk 00:37:20]} {[%emt 00:00:07]} 24. h4 {[%clk 00:24:50]} {[%emt 00:04:38]}
h5 {[%clk 00:30:35]} {[%emt 00:07:16]} 25. Qf4 {[%clk 00:19:26]} {[%emt
00:05:53]} Ng8 {[%clk 00:21:58]} {[%emt 00:09:07]} 26. Ng5 {[%clk 00:07:13]}
{[%emt 00:12:43]} Nh6 {[%clk 00:17:09]} {[%emt 00:05:19]} 27. Nde6+ {[%clk
00:04:21]} {[%emt 00:03:22]} fxe6 {[%clk 00:14:15]} {[%emt 00:03:24]} 28. Rxd6
{[%clk 00:04:40]} {[%emt 00:00:11]} Qc7 {[%clk 00:13:58]} {[%emt 00:00:48]} 29.
Red1 {[%clk 00:04:32]} {[%emt 00:00:38]} Nf7 {[%clk 00:12:05]} {[%emt
00:02:23]} 30. Nxf7 {[%clk 00:01:59]} {[%emt 00:03:02]} Qxf7 {[%clk 00:12:23]}
{[%emt 00:00:13]} 31. Qe5+ {[%clk 00:02:14]} {[%emt 00:00:15]} Kh7 {[%clk
00:11:44]} {[%emt 00:01:09]} 32. Rd8 {[%clk 00:01:16]} {[%emt 00:01:28]} Rc1
{[%clk 00:10:55]} {[%emt 00:01:20]} 33. Qb8 {[%clk 00:00:49]} {[%emt 00:00:56]}
Rxd1+ {[%clk 00:11:12]} {[%emt 00:00:13]} 0-1

[Event "Schack-SM 2024: Junior-SM"]
[Site "Fortnox Arena, Hejaregatan 5, Vaxjo, Sweden"]
[Date "2024.07.04"]
[Round "6.4"]
[White "Seo, Jung Hyun"]
[Black "Nilsson, Oliver"]
[Result "1-0"]
[TimeControl "90 minutes for 40 moves + 30 minutes for the rest of the game + 30 seconds per move from move one."]
[WhiteElo "2137"]
[BlackElo "2099"]

1. e4 {[%clk 01:30:57]} {[%emt 00:00:02]} c5 {[%clk 01:30:49]} {[%emt
00:00:11]} 2. Nf3 {[%clk 01:31:20]} {[%emt 00:00:07]} e6 {[%clk 01:31:15]}
{[%emt 00:00:05]} 3. d4 {[%clk 01:31:12]} {[%emt 00:00:38]} cxd4 {[%clk
01:31:41]} {[%emt 00:00:04]} 4. Nxd4 {[%clk 01:31:40]} {[%emt 00:00:02]} Nc6
{[%clk 01:32:06]} {[%emt 00:00:06]} 5. Nc3 {[%clk 01:31:45]} {[%emt 00:00:24]}
a6 {[%clk 01:32:26]} {[%emt 00:00:11]} 6. Be3 {[%clk 01:32:03]} {[%emt
00:00:10]} Nf6 {[%clk 01:32:25]} {[%emt 00:00:31]} 7. Qf3 {[%clk 01:26:49]}
{[%emt 00:05:44]} Bb4 {[%clk 01:32:17]} {[%emt 00:00:39]} 8. Nxc6 {[%clk
01:26:22]} {[%emt 00:00:57]} bxc6 {[%clk 01:32:23]} {[%emt 00:00:24]} 9. Bd4
{[%clk 01:21:48]} {[%emt 00:05:03]} c5 {[%clk 01:16:31]} {[%emt 00:16:22]} 10.
Be5 {[%clk 01:19:25]} {[%emt 00:02:51]} Bb7 {[%clk 01:16:43]} {[%emt 00:00:21]}
11. O-O-O {[%clk 01:07:59]} {[%emt 00:11:56]} Bxc3 {[%clk 01:13:34]} {[%emt
00:03:39]} 12. Qxc3 {[%clk 01:01:29]} {[%emt 00:06:59]} Nxe4 {[%clk 01:13:20]}
{[%emt 00:00:45]} 13. Qe3 {[%clk 01:00:43]} {[%emt 00:01:13]} f6 {[%clk
01:06:28]} {[%emt 00:07:25]} 14. Bd6 {[%clk 00:38:08]} {[%emt 00:23:05]} Nxd6
{[%clk 01:03:14]} {[%emt 00:03:44]} 15. Rxd6 {[%clk 00:38:34]} {[%emt
00:00:03]} Qc7 {[%clk 01:03:16]} {[%emt 00:00:28]} 16. Qg3 {[%clk 00:34:48]}
{[%emt 00:04:17]} e5 {[%clk 00:39:50]} {[%emt 00:23:55]} 17. Qxg7 {[%clk
00:34:07]} {[%emt 00:01:12]} O-O-O {[%clk 00:40:17]} {[%emt 00:00:03]} 18. Qxf6
{[%clk 00:30:54]} {[%emt 00:03:42]} Rhf8 {[%clk 00:39:19]} {[%emt 00:01:28]} 19.
Qh6 {[%clk 00:31:10]} {[%emt 00:00:08]} Rxf2 {[%clk 00:39:04]} {[%emt
00:00:52]} 20. Bxa6 {[%clk 00:31:00]} {[%emt 00:00:40]} Qa5 {[%clk 00:39:00]}
{[%emt 00:00:33]} 21. Rhd1 {[%clk 00:25:21]} {[%emt 00:06:09]} Qa4 {[%clk
00:37:18]} {[%emt 00:02:13]} 22. Bxb7+ {[%clk 00:16:58]} {[%emt 00:08:53]} Kxb7
{[%clk 00:14:11]} {[%emt 00:23:36]} 23. b3 {[%clk 00:17:20]} {[%emt 00:00:09]}
Qe4 {[%clk 00:14:39]} {[%emt 00:00:02]} 24. Rxd7+ {[%clk 00:15:23]} {[%emt
00:02:27]} Rxd7 {[%clk 00:14:50]} {[%emt 00:00:19]} 25. Rxd7+ {[%clk 00:15:52]}
{[%emt 00:00:01]} Kc8 {[%clk 00:15:14]} {[%emt 00:00:06]} 26. Rd3 {[%clk
00:15:25]} {[%emt 00:00:55]} Qf4+ {[%clk 00:09:13]} {[%emt 00:06:33]} 27. Qxf4
{[%clk 00:15:51]} {[%emt 00:00:04]} exf4 {[%clk 00:09:38]} {[%emt 00:00:05]} 28.
Rd2 {[%clk 00:16:04]} {[%emt 00:00:17]} Rf1+ {[%clk 00:10:04]} {[%emt
00:00:03]} 29. Kb2 {[%clk 00:16:29]} {[%emt 00:00:05]} Rh1 {[%clk 00:10:31]}
{[%emt 00:00:04]} 30. g3 {[%clk 00:15:56]} {[%emt 00:01:02]} f3 {[%clk
00:10:42]} {[%emt 00:00:19]} 31. Rf2 {[%clk 00:16:22]} {[%emt 00:00:03]} 1-0